Cogmind - Beta 11 X7 @@@ ROGUE MODE // 2021.09.08 @ 19:19:42 // Winter2019/RPGLIKE Player: Plexion Result: Self-destructed Performance ------------- Evolutions (2) 1000 Regions Visited (7) 1400 Robots Destroyed (53) 265 Value Destroyed (1430) 1430 Prototype IDs (1) 20 Alien Tech Used (0) 0 Bonus (0) 0 TOTAL SCORE: 4115 Bonus ------- None Cogmind --------- Core Integrity 46/600 Matter 4/300 Energy 100/100 System Corruption 0% Temperature Warm (180) Movement Treading (160) Location -8/Materials Parts ------- > --- POWER (1) -------- (None) > --- PROPULSION (2) --- Light Treads Airjet > --- UTILITY (3) ------ Hardened Light Armor Plating Hardened Medium Armor Plating Makeshift System Shield > --- WEAPON (2) ------- Heavy Assault Rifle Heavy Assault Rifle > --- INVENTORY (3) ---- Makeshift Sensor Array Grenade Launcher Longsword +1 Peak State ------------ > --- POWER ------------ Light Ion Engine > --- PROPULSION ------- Light Treads Airjet > --- UTILITY ---------- Makeshift Sensor Array Hardened Light Armor Plating Makeshift System Shield > --- WEAPON ----------- Heavy Assault Rifle Longsword +1 > --- INVENTORY -------- Medium Armor Plating Heavy Assault Rifle Grenade Launcher [Rating: 28] Favorites ----------- Power Light Ion Engine Engine Light Ion Engine Propulsion Light Treads Treads Light Treads Hover Unit Airjet Utility Hardened Light Armor Plating Device Heat Sink Hackware Makeshift System Shield Protection Hardened Light Armor Plating Weapon Heavy Assault Rifle Energy Gun Small Laser Ballistic Gun Heavy Assault Rifle Launcher Grenade Launcher Slashing Weapon Longsword +1 Build | -11 -10 -10 -9 -9 -9 -8 -8 ------- Run | Scr Mat Min Mat Min Exi Min Mat Slots Evolved 4 | 3 . . . . 1 . . Power . | . . . . . . . . Propulsion 1 | 1 . . . . . . . Utility 2 | 1 . . . . 1 . . Weapon 1 | 1 . . . . . . . Parts Attached 27 | 5 . . 5 2 4 . 11 Power 1 | 1 . . . . . . . Engine 1 | 1 . . . . . . . Core . | . . . . . . . . Reactor . | . . . . . . . . Propulsion 3 | 2 . . . . . . 1 Treads 2 | 2 . . . . . . . Leg . | . . . . . . . . Wheel . | . . . . . . . . Hover 1 | . . . . . . . 1 Flight . | . . . . . . . . Utility 8 | . . . 2 2 2 . 2 Device 2 | . . . 1 . 1 . . Storage . | . . . . . . . . Processor . | . . . . . . . . Hackware 1 | . . . . . 1 . . Protection 5 | . . . 1 2 . . 2 Artifact . | . . . . . . . . Weapon 15 | 2 . . 3 . 2 . 8 Energy Gun 3 | 1 . . 1 . 1 . . Energy Cannon . | . . . . . . . . Ballistic Gun 7 | 1 . . 1 . . . 5 Ballistic Cannon . | . . . . . . . . Launcher 1 | . . . 1 . . . . Special Weapon . | . . . . . . . . Impact Weapon . | . . . . . . . . Slashing Weapon 4 | . . . . . 1 . 3 Piercing Weapon . | . . . . . . . . Special Melee Weapon . | . . . . . . . . Unidentified Prototypes 1 | . . . . . 1 . . Parts Lost 2 | . . . . 1 . . 1 Power 1 | . . . . . . . 1 Propulsion . | . . . . . . . . Utility 1 | . . . . 1 . . . Weapon . | . . . . . . . . Highest Loss Streak 1 | . . . . 1 . . 1 Average Slot Usage (%) 89 | . 71 71 92 99 99 100 91 Engine 12 | . 14 14 14 14 13 12 5 Treads 25 | . 28 28 28 28 27 25 14 Hover 1 | . . . . . . . 9 Device 7 | . . . 8 14 13 12 3 Hackware 3 | . . . . . 3 12 12 Protection 11 | . . . 12 13 13 12 20 Energy Gun 10 | . 14 14 13 14 12 12 . Ballistic Gun 15 | . 14 14 14 14 13 12 22 Naked Turns . | . . . . . . . . Heaviest Build 21 | 5 5 5 15 15 19 17 21 Greatest Support 40 | 40 40 40 40 40 40 40 40 Greatest Overweight (x) 1 | . . . . . . . 1 Average Overweight (x) . | . . . . . . . . Largest Inventory Capacity 3 | 3 3 3 3 3 3 3 3 Average Capacity 2 | 2 3 3 3 3 3 3 3 Most Carried 3 | 1 3 3 3 3 3 3 3 Average Carried 2 | . 1 2 1 2 3 3 3 Final Capacity 3 | 3 3 3 3 3 3 3 3 Final Carried 3 | 1 3 2 2 3 3 3 3 Class Distribution -------------------- 100% | Mutant Dominant Class ---------------- Mutant | -10/Materials Mutant | -10/Mines Mutant | -9/Materials Mutant | -9/Mines Mutant | -9/Exiles Mutant | -8/Mines Mutant | -8/Materials Resources | -11 -10 -10 -9 -9 -9 -8 -8 ----------- Run | Scr Mat Min Mat Min Exi Min Mat Matter Collected 835 | 250 23 12 194 57 39 10 250 Remotely . | . . . . . . . . Salvage Created 1805 | . 162 103 638 123 97 . 682 Parts 116 | . 18 3 41 14 2 . 38 Haulers Intercepted 4 | . . . 3 . . . 1 Recyclers Shooed 5 | . . 2 1 . . . 2 Parts Field Recycled . | . . . . . . . . Retrieved Matter . | . . . . . . . . Parts Self-Destructed . | . . . . . . . . Prevented . | . . . . . . . . Kills | -11 -10 -10 -9 -9 -9 -8 -8 ------- Run | Scr Mat Min Mat Min Exi Min Mat Combat Hostiles Destroyed 43 | . 10 2 16 2 . . 13 Melee 1 | . . . . . . . 1 Guns 39 | . 10 2 13 2 . . 12 AOE 3 | . . . 3 . . . . Classes Destroyed 8 | . 2 1 2 1 . . 2 Worker 2 | . . 1 1 . . . . Builder 2 | . . . . 2 . . . Hauler 4 | . . . 3 . . . 1 Recycler 1 | . . . . . . . 1 Operator 1 | . . . . . . . 1 Swarmer 14 | . 6 . 8 . . . . Grunt 17 | . 4 2 4 . . . 7 Sentry 12 | . . . 4 2 . . 6 Best Kill Streak 4 | . 4 2 4 2 . . 3 Combat Bots Only 4 | . 4 2 4 2 . . 3 Max Kills in Single Turn 2 | . 2 1 2 1 . . 1 Gunslinging 1 | . 1 . . . . . . Exploded 2 | . . . 2 . . . . Melee 1 | . . . . . . . 1 Uniques/NPCs Destroyed . | . . . . . . . . Combat | -11 -10 -10 -9 -9 -9 -8 -8 -------- Run | Scr Mat Min Mat Min Exi Min Mat Damage Taken 2994 | . 330 241 671 307 . . 1445 Core 2119 | . 263 193 496 229 . . 938 Absorbed by Shields . | . . . . . . . . Redirected to Core 1694 | . 192 159 360 142 . . 841 Core Remaining (%) 89 | 100 . 99 . . . 70 . Volleys Fired 187 | . 24 11 58 11 3 . 80 Largest 2 | . 2 2 2 2 2 . 2 Hottest 63 | . 60 60 63 63 63 . 63 Shots Fired 359 | . 48 22 110 22 6 . 151 Gun 356 | . 48 22 107 22 6 . 151 Cannon . | . . . . . . . . Launcher 3 | . . . 3 . . . . Special . | . . . . . . . . Kinetic 251 | . 24 11 55 11 3 . 147 Thermal 105 | . 24 11 52 11 3 . 4 Explosive 3 | . . . 3 . . . . Electromagnetic . | . . . . . . . . Robot Hit Streak 27 | . 15 7 14 26 27 . 16 Robot Miss Streak 6 | . 6 1 3 . 1 . 5 Penetration Max . | . . . . . . . . Secondary Targets 5 | . 4 . . . . . 1 Max Gunslinging Chain 1 | . 1 . . . . . 1 Shots Hit Robots 261 | . 29 16 75 21 5 . 115 Core Hits 98 | . 14 7 32 6 3 . 36 Critical Kills . | . . . . . . . . Critical Parts Destroyed . | . . . . . . . . Critical Strikes 1 | . . . . . . . 1 Sever 1 | . . . . . . . 1 Melee Attacks 9 | . . . . . 1 . 8 Impact . | . . . . . . . . Slashing 9 | . . . . . 1 . 8 Piercing . | . . . . . . . . Sneak Attacks . | . . . . . . . . Combat Hostiles . | . . . . . . . . Follow-up Attacks . | . . . . . . . . Damage Inflicted 3990 | . 320 194 1062 286 237 . 1891 Guns 3469 | . 320 194 882 286 72 . 1715 Cannons . | . . . . . . . . Explosions 180 | . . . 180 . . . . Melee 341 | . . . . . 165 . 176 Ramming . | . . . . . . . . Kinetic 2557 | . 112 84 487 162 41 . 1671 Thermal 912 | . 208 110 395 124 31 . 44 Explosive 180 | . . . 180 . . . . Electromagnetic . | . . . . . . . . Impact . | . . . . . . . . Slashing 341 | . . . . . 165 . 176 Piercing . | . . . . . . . . Highest Corruption . | . . . . . . . . Average Corruption . | . . . . . . . . Corruption Purged . | . . . . . . . . Overload Shots . | . . . . . . . . Overflow Damage . | . . . . . . . . Projectiles . | . . . . . . . . Explosions . | . . . . . . . . Melee . | . . . . . . . . Knockbacks . | . . . . . . . . Impact . | . . . . . . . . Kinetic . | . . . . . . . . Secondary . | . . . . . . . . Self-Inflicted Damage 18 | . . . 18 . . . . Shots 1 | . . . 1 . . . . Rammed . | . . . . . . . . Targets Rammed . | . . . . . . . . Kicked . | . . . . . . . . Crushed . | . . . . . . . . Highest Temperature 204 | . 114 175 204 30 . . 180 Average Temperature 58 | . 39 85 70 18 . . 56 Received Heat Transfer 1302 | . 66 135 228 117 . . 756 Siege Activations . | . . . . . . . . Robots Corrupted . | . . . . . . . . Combat Hostiles . | . . . . . . . . Parts Fried . | . . . . . . . . Impact Corruptions . | . . . . . . . . Robots Melted . | . . . . . . . . Combat Hostiles . | . . . . . . . . Parts Melted 3 | . . 2 . 1 . . . Heat Transferred 2025 | . 450 250 875 275 75 . 100 Parts Sabotaged . | . . . . . . . . Parts Stolen . | . . . . . . . . Parts Stripped . | . . . . . . . . Power Chain Reactions . | . . . . . . . . Missiles Intercepted . | . . . . . . . . Alert | -11 -10 -10 -9 -9 -9 -8 -8 ------- Run | Scr Mat Min Mat Min Exi Min Mat Peak Influence 358 | . 220 140 358 123 . . 257 Initial 103 | . . 85 54 103 . . . Average 123 | . 80 135 203 71 . . 140 Maximum Alert Level 1 | . 1 . 1 . . . 1 Low Security (%) 77 | 100 92 100 41 100 . 100 74 Level 1 22 | . 7 . 58 . . . 25 Level 2 . | . . . . . . . . Level 3 . | . . . . . . . . Level 4 . | . . . . . . . . Level 5 . | . . . . . . . . High Security . | . . . . . . . . Max Security . | . . . . . . . . Squads Dispatched 7 | . 1 . 2 . . . 4 Investigation 1 | . 1 . . . . . . Extermination . | . . . . . . . . Reinforcement 3 | . . . 2 . . . 1 Assault . | . . . . . . . . Garrison 3 | . . . . . . . 3 Intercept . | . . . . . . . . Construction Impeded . | . . . . . . . . Haulers Reinforced . | . . . . . . . . Active Scanning Responses . | . . . . . . . . Cargo Convoy Interrupts . | . . . . . . . . Stealth | -11 -10 -10 -9 -9 -9 -8 -8 --------- Run | Scr Mat Min Mat Min Exi Min Mat Distress Signals 9 | . 5 . 1 . . . 3 Communications Jammed . | . . . . . . . . Distress Signals . | . . . . . . . . Times Spotted 79 | . 20 2 25 2 . . 30 Peak Tracking Total 9 | . 5 2 5 2 . . 9 Tactical Retreats 9 | . 3 . 3 . . . 3 Traps | -11 -10 -10 -9 -9 -9 -8 -8 ------- Run | Scr Mat Min Mat Min Exi Min Mat Traps Triggered 1 | . 1 . . . . . . Indirectly . | . . . . . . . . Trap Hack Attempts . | . . . . . . . . Triggered . | . . . . . . . . Disarmed . | . . . . . . . . Reprogrammed . | . . . . . . . . Reused . | . . . . . . . . Traps Extracted . | . . . . . . . . Installed . | . . . . . . . . Triggered . | . . . . . . . . Machines | -11 -10 -10 -9 -9 -9 -8 -8 ---------- Run | Scr Mat Min Mat Min Exi Min Mat Machines Disabled 1 | . . . 1 . . . . Max in Single Turn 1 | . . . 1 . . . . Garrison Access 1 | . . . . . . . 1 Machines Sabotaged . | . . . . . . . . Garrisons Compromised . | . . . . . . . . Overloaded Fab Kills . | . . . . . . . . Fab Network Shutdowns . | . . . . . . . . Hacking | -11 -10 -10 -9 -9 -9 -8 -8 --------- Run | Scr Mat Min Mat Min Exi Min Mat Machines Accessed 6 | . 2 . 1 . . . 3 Terminals 5 | . 2 . 1 . . . 2 Fabricators . | . . . . . . . . Repair Stations . | . . . . . . . . Recycling Units . | . . . . . . . . Scanalyzers . | . . . . . . . . Garrison Access 1 | . . . . . . . 1 Total Hacks 12 | . 5 . 1 . . . 6 Successful 10 | . 4 . 1 . . . 5 Failed 2 | . 1 . . . . . 1 Catastrophic . | . . . . . . . . Database Lockouts . | . . . . . . . . Manual 11 | . 5 . 1 . 1 . 4 Terminals 10 | . 5 . 1 . . . 4 Fabricators . | . . . . . . . . Repair Stations . | . . . . . . . . Recycling Units . | . . . . . . . . Scanalyzers . | . . . . . . . . Garrison Access 2 | . . . . . . . 2 Terminal Hacks 5 | . 3 . . . . . 2 Robot Analysis 1 | . 1 . . . . . . Zone Layout 4 | . 2 . . . . . 2 Fabricator Hacks . | . . . . . . . . Repair Station Hacks . | . . . . . . . . Recycling Unit Hacks . | . . . . . . . . Scanalyzer . | . . . . . . . . Garrison Access Hacks 1 | . . . . . . . 1 Seal Access 1 | . . . . . . . 1 Unauthorized Hacks 4 | . 1 . 1 . . . 2 Terminals 4 | . 1 . 1 . . . 2 Track 4 | . 1 . 1 . . . 2 Fabricators . | . . . . . . . . Repair Stations . | . . . . . . . . Recycling Units . | . . . . . . . . Scanalyzers . | . . . . . . . . Garrison Access . | . . . . . . . . Data Cores Recovered . | . . . . . . . . Used . | . . . . . . . . Hacking Detections 2 | . 1 . . . . . 1 Full Trace Events . | . . . . . . . . Feedback Events . | . . . . . . . . Feedback Blocked . | . . . . . . . . Robot Schematics Acquired . | . . . . . . . . Robots Built . | . . . . . . . . Matter . | . . . . . . . . Time . | . . . . . . . . Total Robot Build Rating . | . . . . . . . . Part Schematics Acquired . | . . . . . . . . Parts Built . | . . . . . . . . Matter . | . . . . . . . . Time . | . . . . . . . . Total Part Build Rating . | . . . . . . . . Parts Repaired . | . . . . . . . . Time . | . . . . . . . . Parts Recycled . | . . . . . . . . Recycled Matter . | . . . . . . . . Retrieved Matter . | . . . . . . . . Retrieved Components . | . . . . . . . . Parts Scanalyzed . | . . . . . . . . Part Schematics Acquired . | . . . . . . . . Parts Damaged . | . . . . . . . . Bothacking | -11 -10 -10 -9 -9 -9 -8 -8 ------------ Run | Scr Mat Min Mat Min Exi Min Mat Used RIF Installer . | . . . . . . . . Robots Hacked . | . . . . . . . . Non-combat . | . . . . . . . . Combat . | . . . . . . . . Robot Hacks Applied . | . . . . . . . . Relay Couplers Released . | . . . . . . . . Robots Rewired 1 | . . . . . 1 . . Allies Hacked . | . . . . . . . . Hacks Repelled . | . . . . . . . . Allies | -11 -10 -10 -9 -9 -9 -8 -8 -------- Run | Scr Mat Min Mat Min Exi Min Mat Total Allies 2 | . . . . 1 1 . . Largest Group 1 | . . . . 1 1 1 1 Highest-Rated Group 31 | . . . . 31 8 8 8 Highest-Rated Ally 31 | . . . . 31 8 8 8 Total Orders . | . . . . . . . . Ally Attacks 3 | . . . . 2 . . 1 Total Damage 22 | . . . . 22 . . . Kills . | . . . . . . . . Allies Corrupted . | . . . . . . . . Allies Melted . | . . . . . . . . Intel | -11 -10 -10 -9 -9 -9 -8 -8 ------- Run | Scr Mat Min Mat Min Exi Min Mat Robot Analysis Total 1 | . 1 . . . . . . Derelict Logs Recovered 1 | . . 1 . . . . . Drone Launches . | . . . . . . . . Drone Recoveries . | . . . . . . . . Exploration | -11 -10 -10 -9 -9 -9 -8 -8 ------------- Run | Scr Mat Min Mat Min Exi Min Mat Turns Passed 4290 | 84 708 308 937 626 618 149 860 Spaces Moved 2124 | 50 376 164 456 317 372 91 298 Core 3 | 3 . . . . . . . Treads 2121 | 47 376 164 456 317 372 91 298 Legs . | . . . . . . . . Wheels . | . . . . . . . . Hover . | . . . . . . . . Flight . | . . . . . . . . Fastest Speed 50 | 50 160 160 160 160 160 160 160 Average Speed 161 | 153 160 160 160 160 160 160 169 Slowest Speed 260 | 160 160 160 160 160 160 160 260 Overloaded Moves . | . . . . . . . . Propulsion Burnouts . | . . . . . . . . Robots Hopped . | . . . . . . . . Cave-ins Triggered . | . . . . . . . . Exploration Rate (%) 48 | 4 65 41 55 71 87 32 32 Regions Visited 7 Branch Regions 4 Pre-discovered Areas . | . . . . . . . . Known Exits Taken . | . . . . . . . . Unknown Exits Taken 7 | 1 1 1 1 1 1 1 . Scrap Searched 3 | . . 1 . 1 . 1 . Spaces Dug 3 | . . . . . . . 3 Terrain Destroyed 20 | . . . 17 . . . 3 Melee 3 | . . . . . . . 3 Projectile . | . . . . . . . . AOE 17 | . . . 17 . . . . Terrain Rammed . | . . . . . . . . Walls Destroyed . | . . . . . . . . Machines Disabled . | . . . . . . . . Actions | -11 -10 -10 -9 -9 -9 -8 -8 --------- Run | Scr Mat Min Mat Min Exi Min Mat Total 2628 | 55 441 190 556 413 387 95 491 Wait 191 | . 21 6 23 70 2 5 64 Move 2117 | 49 375 163 455 316 371 90 298 Hop . | . . . . . . . . Pick Up 8 | 1 4 . 1 1 1 . . Fast Attach 12 | 5 . . 2 . 2 . 3 Attach 1 | . . . . 1 . . . Detach . | . . . . . . . . Swap 14 | . . . 3 1 2 . 8 Drop 11 | . 2 1 2 . 2 . 4 Fire 187 | . 24 11 58 11 3 . 80 Melee 9 | . . . . . 1 . 8 Ram . | . . . . . . . . Kick . | . . . . . . . . Crush . | . . . . . . . . Escape Stasis . | . . . . . . . . Rewire 3 | . . . . . 3 . . Trap . | . . . . . . . . Miscellaneous 75 | . 15 9 12 13 . . 26 Route ------- -11/Scrapyard -10/Materials (discovered 3 exits: *Mat x2 / [*Min]) -10/Mines -9/Materials (discovered 4 exits: *Mat / [*Min x2] / [*Sto]) -9/Mines (discovered 3 exits: *Mat / *Exi / [*Zio]) -9/Exiles -8/Mines -8/Materials History --------- Turn | Location | Event 2 | -11/Scrapyard | Upgraded with Propulsion slot (x1) 2 | -11/Scrapyard | Upgraded with Utility slot (x1) 2 | -11/Scrapyard | Upgraded with Weapon slot (x1) 4 | -11/Scrapyard | Discovered new exit (range 16) 85 | -11/Scrapyard | Entered Materials 261 | -10/Materials | Discovered new exit (range 14) 314 | -10/Materials | Build established: Mutant 377 | -10/Materials | Discovered new exit (range 8) 565 | -10/Materials | Discovered new exit (range 15) 793 | -10/Materials | Entered Mines 795 | -10/Mines | Reached level 2 807 | -10/Mines | Met a Derelict bent on vengeance 855 | -10/Mines | Learned Materials terminal intel 982 | -10/Mines | Assembled infested the area 1080 | -10/Mines | Discovered new exit (range 12) 1101 | -10/Mines | Entered Materials 1102 | -9/Materials | Loaded intel: 12 terminal locations 1103 | -9/Materials | Reached level 3 1478 | -9/Materials | Core integrity fell below 50% 1482 | -9/Materials | Reached level 4 1590 | -9/Materials | Discovered new exit (range 16) 1663 | -9/Materials | Discovered new exit (range 15) 1725 | -9/Materials | Discovered new exit (range 14) 1807 | -9/Materials | Discovered new exit (range 15) 1930 | -9/Materials | Reached level 5 2038 | -9/Materials | Entered Mines 2041 | -9/Mines | Received a Mining Laser from a helpful Derelict 2325 | -9/Mines | Discovered new exit (range 3) 2367 | -9/Mines | Excavation squad dispatched 2367 | -9/Mines | A large section of the Mines collapsed 2511 | -9/Mines | A Derelict revealed a hidden shortcut to a safe place 2657 | -9/Mines | Deemed a non-threat by the Exiles lab entrance 2657 | -9/Mines | Discovered new exit (range 5) 2664 | -9/Mines | Entered Exiles 2664 | -9/Exiles | Found Exiles lab destroyed 2851 | -9/Exiles | Opened EX-Vault 2856 | -9/Exiles | Found Prototype Slashing Weapon 3086 | -9/Exiles | Upgraded with Utility slot (x1) 3185 | -9/Exiles | Identified Longsword +1 3262 | -9/Exiles | Discovered new exit (range 14) 3282 | -9/Exiles | Entered Mines 3282 | -8/Mines | Accompanied by 1 ally 3414 | -8/Mines | Discovered new exit (range 3) 3431 | -8/Mines | Entered Materials 3431 | -8/Materials | Accompanied by 1 ally 3433 | -8/Materials | Reached level 6 3476 | -8/Materials | Reached level 7 3711 | -8/Materials | Garrison activated, responded to threat 3884 | -8/Materials | Core integrity fell below 50% 3894 | -8/Materials | Reached level 8 4281 | -8/Materials | Core integrity fell below 20% 4291 | -8/Materials | Self-destructed Last Messages --------------- 04003_ T-07 Excavator is excavating. 04004_ U-05 Engineer lays Concrete. 04005_ U-05 Engineer builds a Wall. 04007_ T-07 Excavator is excavating. 04015_ A-02 Transporter destroyed. 04018_ Acquired 52 matter. 04020_ R-06 Scavenger collects Aluminum Leg. 04039_ Critical hit (Burn: +37). 04049_ Y-45 Defender destroyed. 04051_ U-05 Engineer lays Concrete. 04057_ K-01 Serf collects debris. 04059_ Used Protomatter to restore core integrity (+135, depleted) 04081_ K-01 Serf collects debris. 04087_ Dropped Hvy. Assault Rifle. 04089_ Acquired Hvy. Assault Rifle. 04104_ Dropped Med. Armor Plating. 04188_ Connecting with Garrison Access... >>Seal Access door sealed. 04255_ G-47 Trooper destroyed. Map ----- +----------------------------------------------------+ | | | | | | | ?????????????????????????????????????????????????? | | ?????????????????????????????????????????????????? | | ?????????????????????????????????????????????????? | | ?????????????????????????????????????????????????? | | ?????????????????????????????????????????????????? | | ?????????????????????????????????????????????????? | | ?????????????????????????????????????????????????? | | ?????????????????????????????????????????????????? | | ?????????????????????????????????????????????????? | | ?????????????????????????????????????????????????? | | ?????????????????????????????????????????????????? | | ?????????????????????????????????????????????????? | | ?????????????????????????????????????????????????? | | ?????????????????????????????????????????????????? | | ?????????????????????????????????????????????????? | | ?????????????????????????????????????????????????? | | ?????????????????????????????????????????????????? | | ?????????????????????????????????????????????????? | | ?????????????????????????????????????????????????? | | ?????????????????????????????????????????????????? | | ??????????##########?????????????????????????????? | | ??????????# ###############???????????????? | | ??????????# """ + k u@gggg a t w????????? | | ??????????# """ #### ##########???????????????? | | ??????????# """ !#??# #????????????????????????? | | ??????????# #??# #????????????????????????? | | ??????????# "" #??#+#????????????????????????? | | ??????????# G" #? ???????????????????????? | | ??????????# "" # ?????????????????????? | | ??????????# # #???????????????????? | | ??????????#####/#### #???????????????????? | | ?????????????# #?###########???????????????????? | | ?????????????# # #????????????????????? | | ?????????????# # #????????????????????? | | ?????????????# #??########??????????? | | ?????????????# # #?? #??????????? | | ??############ # #? [#??????????? | | ??# ## ############? #??????????? | | ??# """ """ # #???# # #??????????? | | ??# """ """ # ##### # #??????????? | | ??# """ """ + + #??????????? | | ??# # ##### # #??????????? | | ??# # #???# # #??????????? | | ??# ### ###???## ############??????????? | | ??# #?# #??????# # """ #?????????????? | | ??###########?#%#??????# # """ #?????????????? | | ??????????????# #??????# + """ =#?????????????? | +----------------------------------------------------+ Best States ------------- Heat Dissipation 35 Energy Generation 10 Energy Capacity 125 Matter Stores 300 Matter Capacity 300 Sight Range 16 Robot Scan Range 19 Terrain Scan Density 10 Armor Coverage 375 Evasion (%) 40 Recoil Reduction 2 Defensive Hacking 11 Item Schematics ----------------- None Robot Schematics ------------------ None Fabricated ------------ Nothing Alien Tech Used ----------------- None Achievements -------------- None Challenges ------------ None RPGLIKE | -11 -10 -10 -9 -9 -9 -8 -8 --------- Run | Scr Mat Min Mat Min Exi Min Mat Levels Raised 7 | . . 1 3 . . . 3 XP Earned 13900 | 3000 1405 750 3905 700 200 500 3440 XP Spent 3800 | 3000 . . . . 800 . . Upgrades 7 | 6 . . . . 1 . . Propulsion Slot 1 | 1 . . . . . . . Utility Slot 2 | 1 . . . . 1 . . Weapon Slot 1 | 1 . . . . . . . Inventory Capacity 3 | 3 . . . . . . . Protomatter Created 615 | . 136 46 111 50 . . 272 Integrity Restored 1626 | . 307 204 267 288 . . 560 Core 1565 | . 246 204 267 288 . . 560 Parts 61 | . 61 . . . . . . Protomatter Decayed 68 | . 10 9 . . . . 49 Game ------ Seed ModifiedGaussNukerbomber Manual? 0 Play Time 00:23:13 Cumulative 228.1 hours Start 2021.09.08 @ 18:54:13 End 2021.09.08 @ 19:19:42 Sessions 1 Manual Loads 0 Difficulty Rogue Special Mode Winter2019/RPGLIKE Game No. 289 Rogue 202 Adventurer 87 Explorer 0 Win Type - Total 5 Types 3/0/1/1/0/0/0/0/0 Lore% 70 Gallery% 79 Achievement% 66 Wizard Run 0 Options --------- ASCII 0 Keyboard 1 Movement Numpad Keybinds 0 Fullscreen 1 Font 18/Smallcaps Map View 76x50 Tactical HUD 1 Map Filters NONE Filters NONE Steam 1 RUN: 3a320782-d8a1-4964-b819-2fc03feaa471